lending/lending_fUSD_20250501
["ID","MTS","AMOUNT","RATE_DAILY","PERIOD"]
[359492723,1746063382768,-2943.6540457,0.00019798,2]
[359492724,1746063382796,-2943.6540457,0.00019798,2]
[359492725,1746063382824,-2943.6540457,0.00019798,2]
[359492726,1746063382850,-2943.6540457,0.00019798,2]
[359492727,1746063382878,-2943.6540457,0.00019798,2]
[359492728,1746063382906,-2943.6540457,0.00019798,2]
[359492729,1746063382933,-2943.6540457,0.00019798,2]
[359492730,1746063382961,-2943.6540457,0.00019798,2]
[359492731,1746063382989,-2943.6540457,0.00019798,2]
[359492732,1746063383018,-2943.6540457,0.00019798,2]
[359492733,1746063383045,-2943.6540457,0.00019798,2]
[359492734,1746063383074,-2943.6540457,0.00019798,2]
[359492735,1746063383103,-2943.6540457,0.00019798,2]
[359492736,1746063383131,-2943.6540457,0.00019798,2]
[359492737,1746063383159,-2943.6540457,0.00019798,2]
[359492738,1746063383427,-2943.6540457,0.00019798,2]
[359492739,1746063383458,-2943.6540457,0.00019798,2]
[359492740,1746063383487,-2943.6540457,0.00019798,2]
[359492741,1746063383517,-2943.6540457,0.00019798,2]
[359492742,1746063383550,-2943.6540457,0.00019798,2]
[359492743,1746063383579,-2943.6540457,0.00019798,2]
[359492744,1746063383606,-2943.6540457,0.00019798,2]
[359492745,1746063383636,-2943.6540457,0.00019798,2]
[359492746,1746063383665,-2943.6540457,0.00019798,2]
[359492747,1746063383694,-2943.6540457,0.00019798,2]
[359492748,1746063383722,-2943.6540457,0.00019798,2]
[359492749,1746063383754,-2943.6540457,0.00019798,2]
[359492750,1746063383782,-2943.6540457,0.00019798,2]
[359492751,1746063383814,-2943.6540457,0.00019798,2]
[359492752,1746063383846,-2943.6540457,0.00019798,2]
[359492753,1746063383877,-2943.6540457,0.00019798,2]
[359492754,1746063383906,-2943.6540457,0.00019798,2]
[359492755,1746063383936,-2943.6540457,0.00019798,2]
[359492756,1746063383966,-2943.6540457,0.00019798,2]
[359492757,1746063383997,-2943.6540457,0.00019798,2]
[359492758,1746063384026,-2943.6540457,0.00019798,2]
[359492759,1746063384057,-2943.6540457,0.00019798,2]
[359492760,1746063384087,-2943.6540457,0.00019798,2]
[359492761,1746063384116,-2943.6540457,0.00019798,2]
[359492762,1746063384146,-2943.6540457,0.00019798,2]
[359492763,1746063384176,-2943.6540457,0.00019798,2]
[359492764,1746063384206,-2943.6540457,0.00019798,2]
[359492765,1746063384236,-2943.6540457,0.00019798,2]
[359492766,1746063384266,-2943.6540457,0.00019798,2]
[359492767,1746063384296,-2943.6540457,0.00019798,2]
[359492768,1746063384327,-2943.6540457,0.00019798,2]
[359492769,1746063384359,-2943.6540457,0.00019798,2]
[359492770,1746063384389,-2943.6540457,0.00019798,2]
[359492771,1746063384419,-2943.6540457,0.00019798,2]
[359492772,1746063384449,-2943.6540457,0.00019798,2]
[359492773,1746063384479,-2943.6540457,0.00019798,2]
[359492774,1746063384509,-2943.6540457,0.00019798,2]
[359492775,1746063384538,-2943.6540457,0.00019798,2]
[359492776,1746063384567,-1511.2134408,0.00019798,2]
[359492779,1746063527133,257.75,0.00019039,2]
[359492780,1746063563564,200.0,0.00018986,2]
[359492790,1746063652449,1125.4843159,0.0003287,60]
[359492791,1746063742166,1542.25,0.0001891,2]
[359492792,1746063742188,2000.0,0.0001891,2]
[359492793,1746063742209,2000.0,0.0001891,2]
[359492794,1746063742231,1000.0,0.0001891,2]
[359492795,1746063742254,3009.01,0.0001891,2]
[359492796,1746063793004,2000.0,0.00018759,2]
[359492797,1746063801110,200.0,0.00018759,2]
[359492798,1746063808042,250.0,0.00017,2]
[359492799,1746063808922,250.0,0.00019,2]
[359492800,1746063808944,50.0,0.00019,2]
[359492802,1746064000822,1000.0,0.00018891,2]
[359492803,1746064015634,1457.06222521,0.00032876,60]
[359492813,1746064085346,200.0,0.00032876,100]
[359492814,1746064090241,258.12,0.00019,2]
[359492876,1746064232059,-1200.0,0.00019391,2]
[359492877,1746064232069,-300.0,0.00019391,2]
[359492878,1746064232079,-43580.14,0.00019392,2]
[359492879,1746064232088,-250.0,0.00019446,2]
[359492880,1746064232097,-424.06174179,0.000195,2]
[359492881,1746064232107,-200.0,0.00019594,2]
[359492882,1746064232119,-4935.68047613,0.00019598,2]
[359492883,1746064232129,-200.0,0.00019612,2]
[359492884,1746064232142,-4935.6804761,0.00019632,2]
[359492885,1746064232151,-4935.6804761,0.00019665,2]
[359492886,1746064232163,-216.52952336,0.00019666,2]
[359492887,1746064232174,-166.66,0.00019669,2]
[359492888,1746064232184,-4858.34276478,0.00019697,2]
[359492889,1746064232195,-300.0,0.00019697,2]
[359492890,1746064232205,-816.57169431,0.00019698,2]
[359492891,1746064232218,-816.57169431,0.00019698,2]
[359492892,1746064232230,-816.57169431,0.00019698,2]
[359492893,1746064232240,-816.57169431,0.00019698,2]
[359492894,1746064232251,-816.57169431,0.00019698,2]
[359492895,1746064232262,-816.57169431,0.00019698,2]
[359492896,1746064232272,-816.57169431,0.00019698,2]
[359492897,1746064232283,-816.57169431,0.00019698,2]
[359492898,1746064232294,-816.57169431,0.00019698,2]
[359492899,1746064232304,-816.57169431,0.00019698,2]
[359492900,1746064232315,-816.57169431,0.00019698,2]
[359492901,1746064232325,-816.57169431,0.00019698,2]
[359492902,1746064232336,-816.57169431,0.00019698,2]
[359492903,1746064232347,-816.57169431,0.00019698,2]
[359492904,1746064232358,-816.57169431,0.00019698,2]
[359492905,1746064232368,-816.57169431,0.00019698,2]
[359492906,1746064232378,-816.57169431,0.00019698,2]
[359492907,1746064232388,-816.57169431,0.00019698,2]
[359492908,1746064232397,-816.57169431,0.00019698,2]
[359492909,1746064232407,-816.57169431,0.00019698,2]
[359492910,1746064232416,-816.57169431,0.00019698,2]
[359492911,1746064232426,-816.57169431,0.00019698,2]
[359492912,1746064232435,-816.57169431,0.00019698,2]
[359492913,1746064232445,-816.57169431,0.00019698,2]
[359492914,1746064232454,-816.57169431,0.00019698,2]
[359492915,1746064232464,-816.57169431,0.00019698,2]
[359492916,1746064232473,-816.57169431,0.00019698,2]
[359492917,1746064232483,-816.57169431,0.00019698,2]
[359492918,1746064232493,-816.57169431,0.00019698,2]
[359492919,1746064232503,-816.57169431,0.00019698,2]
[359492920,1746064232512,-816.57169431,0.00019698,2]
[359492921,1746064232523,-816.57169431,0.00019698,2]
[359492922,1746064232532,-816.57169431,0.00019698,2]
[359492923,1746064232542,-816.57169431,0.00019698,2]
[359492924,1746064232551,-816.57169431,0.00019698,2]
[359492925,1746064232560,-816.57169431,0.00019698,2]
[359492926,1746064232570,-816.57169431,0.00019698,2]
[359492927,1746064232579,-816.57169431,0.00019698,2]
[359492928,1746064232590,-816.57169431,0.00019698,2]
[359492929,1746064232599,-816.57169431,0.00019698,2]
[359492930,1746064232609,-816.57169431,0.00019698,2]
[359492931,1746064232619,-816.57169431,0.00019698,2]
[359492932,1746064232628,-362.99762294,0.00019698,2]
[359492933,1746064232640,-453.57407137,0.00019698,2]
[359492934,1746064232650,-816.57169431,0.00019698,2]
[359492935,1746064232660,-816.57169431,0.00019698,2]
[359492936,1746064232670,-816.57169431,0.00019698,2]
[359492937,1746064232681,-816.57169431,0.00019698,2]
[359492938,1746064232691,-816.57169431,0.00019698,2]
[359492939,1746064232701,-239.64198352,0.00019698,2]
[359492940,1746064236691,-500.0,0.00019697,2]
[359492941,1746064236702,-279.58447618,0.00019697,2]
[359492942,1746064236711,-500.0,0.00019697,2]
[359492943,1746064236720,-500.0,0.00019697,2]
[359492944,1746064236729,-500.0,0.00019697,2]
[359492945,1746064236738,-500.0,0.00019697,2]
[359492946,1746064236747,-500.0,0.00019697,2]
[359492947,1746064236757,-4935.6804761,0.00019699,2]
[359492948,1746064236766,-7963.6907,0.000197,2]
[359492949,1746064236775,-29970.54483353,0.000197,2]
[359492950,1746064236784,-1000.0,0.000197,2]
[359492951,1746064236793,-150.0,0.00019726,2]
[359492952,1746064236803,-4935.6804761,0.00019732,2]
[359492953,1746064236812,-7149.4017248,0.00019733,2]
[359492954,1746064236821,-7149.40172471,0.00019752,2]
[359492955,1746064236830,-4935.6804761,0.00019766,2]
[359492956,1746064236839,-402.6749656,0.00019773,2]
[359492957,1746064236848,-501.46219027,0.00019773,2]
[359492958,1746064236858,-6094.77557053,0.00019788,2]
[359492959,1746064236995,-1624.61584271,0.00019788,2]
[359492962,1746064237028,-2005.01203449,0.00019788,2]
[359492965,1746064237040,-1879.44851879,0.00019788,2]
[359492967,1746064237051,-1348.16384016,0.00019788,2]
[359492994,1746064238100,-697.92635792,0.00019788,2]
[359492995,1746064238110,-4935.6804761,0.00019799,2]
[359492996,1746064238119,-138971.64498139,0.000198,2]
[359492997,1746064238128,-4935.6804761,0.00019833,2]
[359492998,1746064238140,-4935.6804761,0.00019866,2]
[359492999,1746064238150,-500.0,0.00019886,2]
[359493000,1746064238160,-1780.8076,0.00019886,2]
[359493001,1746064238170,-92007.5872,0.000199,2]
[359493003,1746064238180,-150.9687,0.000199,2]
[359493004,1746064238191,-625.0591,0.000199,2]
[359493005,1746064238201,-36239.7842,0.000199,2]
[359493006,1746064238211,-245.84741177,0.000199,2]
[359493007,1746064238221,-511.1,0.000199,2]
[359493008,1746064238231,-4935.6804761,0.000199,2]
[359493010,1746064238241,-1687.16858385,0.000199,2]
[359493012,1746064238250,-170.0,0.00019973,2]
[359493014,1746064238260,-510.10656106,0.00019973,2]
[359493016,1746064238271,-500.0,0.00019973,2]
[359493018,1746064238280,-500.0,0.00019973,2]
[359493020,1746064238290,-500.0,0.00019973,2]
[359493021,1746064238299,-500.0,0.00019973,2]
[359493023,1746064238308,-500.0,0.00019973,2]
[359493024,1746064238317,-500.0,0.00019973,2]
[359493025,1746064238326,-500.0,0.00019973,2]
[359493026,1746064238335,-500.0,0.00019973,2]
[359493028,1746064238345,-500.0,0.00019973,2]
[359493030,1746064238354,-13389.73962372,0.00019979,2]
[359493032,1746064238363,-20507.737495,0.00019986,2]
[359493033,1746064238372,-1099.9971429,0.00019986,2]
[359493035,1746064238382,-17116.961519,0.00019986,2]
[359493037,1746064238391,-81839.3499701,0.00019986,2]
[359493039,1746064238401,-492.6087796,0.00019986,2]
[359493041,1746064238411,-2527.3191815,0.00019986,2]
[359493043,1746064238420,-80824.762625,0.00019986,2]
[359493045,1746064238429,-3971.7409432,0.00019986,2]
[359493047,1746064238438,-6771.1652226,0.00019986,2]
[359493049,1746064238447,-1255.3228553,0.00019986,2]
[359493051,1746064238457,-154.11594364,0.0001999,2]
[359493053,1746064238466,-534.6710845,0.00019999,2]
[359493054,1746064238475,-500.0,0.00019999,2]
[359493055,1746064238485,-323.27492623,0.00019999,2]
[359493056,1746064238495,-581.0,0.0002,2]
[359493057,1746064238504,-956555.59208392,0.0002,2]
[359493058,1746064238514,-328401.0,0.0002,2]
[359493059,1746064238523,-3134433.64082,0.0002,2]
[359493060,1746064238533,-230.74518058,0.0002,2]
[359493061,1746064238542,-200.0,0.0002,2]
[359493062,1746064238552,-200.0,0.0002,2]
[359493063,1746064238561,-800.95,0.0002,2]
[359493064,1746064238570,-800.95,0.0002,2]
[359493065,1746064238580,-422.65,0.0002,2]
[359493066,1746064238589,-455.76,0.0002,2]
[359493067,1746064238598,-454.8,0.0002,2]
[359493068,1746064238608,-151.08,0.00020024,2]
[359493069,1746064238618,-455.76,0.000201,2]
[359493070,1746064238627,-999.99,0.00020145,2]
[359493071,1746064238636,-150.99,0.00020145,2]
[359493072,1746064238646,-9999.99,0.00020145,2]
[359493073,1746064238655,-694.02,0.00020145,2]
[359493074,1746064238665,-1129.22,0.00020145,2]
[359493075,1746064238675,-150.99,0.00020145,2]
[359493076,1746064238684,-434.96,0.00020145,2]
[359493077,1746064238693,-175.1,0.00020145,2]
[359493078,1746064238702,-499.99,0.00020145,2]
[359493079,1746064238712,-2845.72,0.00020145,2]
[359493080,1746064238721,-1042.55,0.00020145,2]
[359493081,1746064238730,-2051.32,0.00020145,2]
[359493082,1746064238739,-9827.44,0.00020145,2]
[359493083,1746064238748,-6713.86,0.00020145,2]
[359493084,1746064238757,-15313.92,0.00020145,2]
[359493085,1746064238766,-200.0,0.000202,2]
[359493086,1746064238776,-192.09798096,0.000202,2]
[359493087,1746064238785,-5496.10853649,0.000202,2]
[359493088,1746064238794,-151.0,0.00020279,2]
[359493089,1746064238803,-166.66,0.00020318,2]
[359493090,1746064238814,-1237.90706598,0.00020346,2]
[359493091,1746064238824,-200.0,0.00020402,2]
[359493092,1746064238833,-5000.0,0.000205,5]
[359493093,1746064238843,-159.0,0.00020584,2]
[359493094,1746064238852,-264.85004993,0.00020584,2]
[359493095,1746064238861,-200.0,0.00020606,2]
[359493096,1746064238871,-500.0,0.00020658,2]
[359493097,1746064238880,-300.0,0.00020762,2]
[359493098,1746064238889,-5496.1085364,0.00020797,3]
[359493099,1746064238898,-200.0,0.00020812,2]
[359493100,1746064238907,-256.38231979,0.0002093,2]
[359493101,1746064238916,-166.66,0.00020967,2]
[359493102,1746064238926,-20000.0,0.00021,2]
[359493103,1746064238936,-10000.0,0.00021,2]
[359493104,1746064238946,-2879.0,0.00021,2]
[359493105,1746064238956,-350.0,0.00021,2]
[359493106,1746064238966,-1031.42,0.000211,2]
[359493107,1746064238976,-309.0,0.00021128,2]
[359493108,1746064238987,-1015.478,0.00021176,2]
[359493109,1746064238996,-154.083,0.00021176,2]
[359493110,1746064239006,-1340.0,0.00021176,2]
[359493111,1746064239015,-797.0,0.00021176,2]
[359493112,1746064239025,-1299.805,0.00021176,2]
[359493113,1746064239034,-590.133,0.00021176,2]
[359493114,1746064239043,-1480.873,0.00021176,2]
[359493115,1746064239052,-1044.991,0.00021176,2]
[359493116,1746064239062,-625.469,0.00021176,2]
[359493117,1746064239071,-2099.455,0.00021176,2]
[359493118,1746064239080,-876.0,0.00021176,2]
[359493119,1746064239090,-156.538,0.00021176,2]
[359493120,1746064239099,-878.0,0.00021176,2]
[359493121,1746064239109,-4003.0,0.00021176,2]
[359493122,1746064239119,-6750.0,0.00021176,2]
[359493123,1746064239128,-150.0,0.00021187,2]
[359493124,1746064239140,-249.813,0.00021187,2]
[359493125,1746064239149,-189.327,0.00021187,2]
[359493126,1746064239159,-167.436,0.00021187,2]
[359493127,1746064239169,-155.315,0.00021187,2]
[359493128,1746064239178,-258.253,0.00021187,2]
[359493129,1746064239188,-245.67,0.00021187,2]
[359493130,1746064239198,-253.434,0.00021187,2]
[359493131,1746064239209,-182.554,0.00021187,2]
[359493132,1746064239219,-259.392,0.00021187,2]
[359493133,1746064239229,-202.809,0.00021187,2]
[359493134,1746064239238,-1242.0,0.0002123,2]
[359493135,1746064239248,-1000.0,0.00021252,2]
[359493136,1746064239258,-202.70937572,0.00021254,2]
[359493137,1746064239267,-150.0,0.00021254,2]
[359493138,1746064239277,-150.82178875,0.00021254,2]
[359493139,1746064239287,-500.0,0.00021254,2]
[359493140,1746064239298,-648.0799787,0.00021254,2]
[359493141,1746064239309,-500.0,0.00021254,2]
[359493142,1746064239321,-500.0,0.00021254,2]
[359493143,1746064239331,-500.0,0.00021254,2]
[359493144,1746064239342,-500.0,0.00021254,2]
[359493145,1746064239351,-500.0,0.00021254,2]
[359493146,1746064239362,-500.0,0.00021254,2]
[359493147,1746064239373,-500.0,0.00021254,2]
[359493148,1746064239382,-500.0,0.00021254,2]
[359493149,1746064239392,-500.0,0.00021254,2]
[359493150,1746064239402,-500.0,0.00021254,2]
[359493151,1746064239412,-500.0,0.00021254,2]
[359493152,1746064239421,-400.0,0.00021254,2]
[359493153,1746064239431,-150.0,0.00021254,2]
[359493154,1746064239441,-256.47834396,0.00021254,2]
[359493155,1746064239450,-500.0,0.00021254,2]
[359493156,1746064239459,-500.0,0.00021254,2]
[359493157,1746064239469,-513.09517222,0.00021254,2]
[359493158,1746064239478,-157.12380058,0.00021254,2]
[359493159,1746064239487,-150.0,0.00021254,2]
[359493160,1746064239499,-150.0,0.00021254,2]
[359493161,1746064239510,-150.0,0.00021254,2]
[359493162,1746064239520,-150.0,0.00021254,2]
[359493163,1746064239531,-150.0,0.00021254,2]
[359493164,1746064239541,-180.55161984,0.00021254,2]
[359493165,1746064239550,-150.69335475,0.00021254,2]
[359493166,1746064239559,-150.24194201,0.00021254,2]
[359493167,1746064239568,-500.0,0.00021254,2]
[359493168,1746064239578,-500.0,0.00021254,2]
[359493169,1746064239589,-225.3015236,0.00021254,2]
[359493170,1746064239598,-150.0,0.00021254,2]
[359493171,1746064239608,-150.0,0.00021254,2]
[359493172,1746064239618,-201.37991488,0.00021254,2]
[359493173,1746064239628,-500.0,0.00021254,2]
[359493174,1746064239638,-500.0,0.00021254,2]
[359493175,1746064239647,-162.04428034,0.00021254,2]
[359493176,1746064239657,-500.0,0.00021254,2]
[359493177,1746064239666,-500.0,0.00021254,2]
[359493178,1746064239676,-500.0,0.00021254,2]
[359493179,1746064239685,-500.0,0.00021254,2]
[359493180,1746064239694,-500.0,0.00021254,2]
[359493182,1746064239703,-500.0,0.00021254,2]
[359493183,1746064239713,-607.46492743,0.00021254,2]
[359493184,1746064239723,-562.0,0.00021254,2]
[359493185,1746064239733,-562.0,0.00021254,2]
[359493186,1746064239743,-562.0,0.00021254,2]
[359493187,1746064239753,-562.0,0.00021254,2]
[359493188,1746064239763,-562.0,0.00021254,2]
[359493189,1746064239772,-562.0,0.00021254,2]
[359493190,1746064239781,-562.0,0.00021254,2]
[359493191,1746064239791,-562.0,0.00021254,2]
[359493192,1746064239801,-562.0,0.00021254,2]
[359493193,1746064239811,-562.0,0.00021254,2]
[359493194,1746064239820,-562.0,0.00021254,2]
[359493195,1746064239831,-562.0,0.00021254,2]
[359493196,1746064239842,-562.0,0.00021254,2]
[359493197,1746064239852,-562.0,0.00021254,2]
[359493198,1746064239864,-562.0,0.00021254,2]
[359493199,1746064239874,-562.0,0.00021254,2]
[359493200,1746064239885,-562.0,0.00021254,2]
[359493201,1746064239896,-562.0,0.00021254,2]
[359493202,1746064239905,-562.0,0.00021254,2]
[359493203,1746064239914,-562.0,0.00021254,2]
[359493204,1746064239923,-562.0,0.00021254,2]
[359493205,1746064239935,-562.0,0.00021254,2]
[359493206,1746064239945,-562.0,0.00021254,2]
[359493207,1746064239955,-584.83338194,0.00021254,2]
[359493208,1746064239966,-150.0,0.00021254,2]
[359493209,1746064239976,-248.44855201,0.00021254,2]
[359493210,1746064239986,-500.0,0.00021254,2]
[359493211,1746064239996,-500.0,0.00021254,2]
[359493212,1746064240007,-500.0,0.00021254,2]
[359493213,1746064240017,-500.0,0.00021254,2]
[359493214,1746064240027,-500.0,0.00021254,2]
[359493215,1746064240036,-500.0,0.00021254,2]
[359493216,1746064240045,-500.0,0.00021254,2]
[359493217,1746064240054,-500.0,0.00021254,2]
[359493218,1746064240064,-500.0,0.00021254,2]
[359493219,1746064240073,-500.0,0.00021254,2]
[359493220,1746064240081,-500.0,0.00021254,2]
[359493221,1746064240091,-476.61419571,0.00021254,2]
[359493222,1746064240101,-150.0,0.00021254,2]
[359493223,1746064240110,-150.0,0.00021254,2]
[359493224,1746064240120,-154.14629039,0.00021254,2]
[359493225,1746064240130,-500.0,0.00021254,2]
[359493226,1746064240144,-624.01331777,0.00021254,2]
[359493227,1746064240154,-500.0,0.00021254,2]
[359493228,1746064240165,-500.0,0.00021254,2]
[359493229,1746064240175,-500.0,0.00021254,2]
[359493230,1746064240185,-537.79360645,0.00021254,2]
[359493231,1746064240194,-151.31165685,0.00021254,2]
[359493232,1746064240204,-500.0,0.00021254,2]
[359493233,1746064240214,-500.0,0.00021254,2]
[359493234,1746064240223,-248.8510479,0.00021254,2]
[359493235,1746064240233,-150.0,0.00021254,2]
[359493236,1746064240242,-150.0,0.00021254,2]
[359493237,1746064240251,-150.0,0.00021254,2]
[359493238,1746064240261,-150.0,0.00021254,2]
[359493239,1746064240270,-155.69463027,0.00021254,2]
[359493240,1746064240279,-500.0,0.00021254,2]
[359493241,1746064240288,-500.0,0.00021254,2]
[359493242,1746064240297,-500.0,0.00021254,2]
[359493243,1746064240306,-500.0,0.00021254,2]
[359493244,1746064240315,-500.0,0.00021254,2]
[359493245,1746064240325,-500.0,0.00021254,2]
[359493246,1746064240334,-266.42526969,0.00021254,2]
[359493247,1746064240343,-277.63380447,0.00021254,2]
[359493248,1746064240352,-150.0,0.00021254,2]
[359493249,1746064240362,-150.0,0.00021254,2]
[359493250,1746064240371,-151.62912378,0.00021254,2]
[359493251,1746064240381,-150.0,0.00021254,2]
[359493252,1746064240391,-150.0,0.00021254,2]
[359493253,1746064240400,-202.04117953,0.00021254,2]
[359493254,1746064240410,-500.0,0.00021254,2]
[359493255,1746064240420,-500.0,0.00021254,2]
[359493256,1746064240430,-500.0,0.00021254,2]
[359493257,1746064240439,-500.0,0.00021254,2]
[359493258,1746064240449,-500.0,0.00021254,2]
[359493259,1746064240460,-500.0,0.00021254,2]
[359493260,1746064240469,-500.0,0.00021254,2]
[359493261,1746064240478,-500.0,0.00021254,2]
[359493262,1746064240487,-500.0,0.00021254,2]
[359493263,1746064240497,-500.0,0.00021254,2]
[359493264,1746064240507,-500.0,0.00021254,2]
[359493265,1746064240516,-500.0,0.00021254,2]
[359493266,1746064240527,-500.0,0.00021254,2]
[359493267,1746064240537,-500.0,0.00021254,2]
[359493268,1746064240547,-647.44581639,0.00021254,2]
[359493269,1746064240556,-500.0,0.00021254,2]
[359493270,1746064240566,-500.0,0.00021254,2]
[359493271,1746064240576,-500.0,0.00021254,2]
[359493272,1746064240585,-500.0,0.00021254,2]
[359493273,1746064240595,-500.0,0.00021254,2]
[359493274,1746064240605,-500.0,0.00021254,2]
[359493275,1746064240766,-500.0,0.00021254,2]
[359493276,1746064240776,-500.0,0.00021254,2]
[359493277,1746064240786,-500.0,0.00021254,2]
[359493278,1746064240796,-500.0,0.00021254,2]
[359493279,1746064240805,-500.0,0.00021254,2]
[359493280,1746064240814,-169.1684616,0.00021254,2]
[359493281,1746064240824,-500.0,0.00021254,2]
[359493282,1746064240833,-500.0,0.00021254,2]
[359493283,1746064240843,-500.0,0.00021254,2]
[359493285,1746064240852,-500.0,0.00021254,2]
[359493287,1746064240862,-500.0,0.00021254,2]
[359493289,1746064240871,-500.0,0.00021254,2]
[359493291,1746064240880,-500.0,0.00021254,2]
[359493293,1746064240889,-500.0,0.00021254,2]
[359493295,1746064240899,-500.0,0.00021254,2]
[359493296,1746064240908,-500.0,0.00021254,2]
[359493297,1746064240920,-500.0,0.00021254,2]
[359493298,1746064240929,-500.0,0.00021254,2]
[359493299,1746064240938,-500.0,0.00021254,2]
[359493300,1746064240947,-485.5140926,0.00021254,2]
[359493301,1746064240957,-500.0,0.00021254,2]
[359493302,1746064240966,-500.0,0.00021254,2]
[359493303,1746064240975,-500.0,0.00021254,2]
[359493304,1746064240984,-500.0,0.00021254,2]
[359493305,1746064240993,-500.0,0.00021254,2]
[359493306,1746064241002,-500.0,0.00021254,2]
[359493307,1746064241011,-500.0,0.00021254,2]
[359493308,1746064241021,-500.0,0.00021254,2]
[359493309,1746064241030,-500.0,0.00021254,2]
[359493310,1746064241039,-500.0,0.00021254,2]
[359493311,1746064241049,-247.13271468,0.00021254,2]
[359493312,1746064241058,-150.0,0.00021254,2]
[359493313,1746064241067,-152.89420589,0.00021254,2]
[359493314,1746064241076,-150.0,0.00021254,2]
[359493315,1746064241085,-150.0,0.00021254,2]
[359493316,1746064241094,-207.07129358,0.00021254,2]
[359493317,1746064241106,-150.0,0.00021254,2]
[359493318,1746064241115,-500.0,0.00021254,2]
[359493319,1746064241125,-500.0,0.00021254,2]
[359493320,1746064241135,-500.0,0.00021254,2]
[359493321,1746064241145,-500.0,0.00021254,2]
[359493322,1746064241155,-500.0,0.00021254,2]
[359493323,1746064241165,-210.11510199,0.00021254,2]
[359493324,1746064241174,-500.0,0.00021254,2]
[359493325,1746064241183,-500.0,0.00021254,2]
[359493326,1746064241192,-500.0,0.00021254,2]
[359493327,1746064241203,-500.0,0.00021254,2]
[359493328,1746064241213,-500.0,0.00021254,2]
[359493329,1746064241225,-500.0,0.00021254,2]
[359493330,1746064241234,-500.0,0.00021254,2]
[359493331,1746064241244,-500.0,0.00021254,2]
[359493332,1746064241254,-500.0,0.00021254,2]
[359493333,1746064241264,-556.34199703,0.00021254,2]
[359493334,1746064241273,-150.0,0.00021254,2]
[359493335,1746064241282,-500.0,0.00021254,2]
[359493336,1746064241291,-500.0,0.00021254,2]
[359493337,1746064241301,-500.0,0.00021254,2]
[359493338,1746064241310,-500.0,0.00021254,2]
[359493339,1746064241320,-500.0,0.00021254,2]
[359493340,1746064241329,-500.0,0.00021254,2]
[359493341,1746064241338,-500.0,0.00021254,2]
[359493342,1746064241349,-500.0,0.00021254,2]
[359493343,1746064241359,-500.0,0.00021254,2]
[359493344,1746064241370,-500.0,0.00021254,2]
[359493345,1746064241381,-500.0,0.00021254,2]
[359493346,1746064241392,-500.0,0.00021254,2]
[359493347,1746064241402,-625.93054994,0.00021254,2]
[359493348,1746064241412,-150.0,0.00021254,2]
[359493349,1746064241422,-500.0,0.00021254,2]
[359493350,1746064241433,-500.0,0.00021271,2]
[359493351,1746064241445,-151.08,0.00021276,2]
[359493352,1746064241455,-501.61179285,0.00021294,2]
[359493353,1746064241465,-500.0,0.00021294,2]
[359493354,1746064241474,-500.0,0.00021318,2]
[359493355,1746064241484,-373.44777472,0.00021318,2]
[359493356,1746064241494,-500.0,0.00021318,2]
[359493357,1746064241504,-163.01328706,0.00021318,2]
[359493358,1746064241514,-250.0,0.00021331,2]
[359493359,1746064241525,-200.0,0.00021331,2]
[359493360,1746064241534,-500.60294482,0.00021381,2]
[359493361,1746064241543,-500.0,0.00021381,2]
[359493362,1746064241552,-500.0,0.00021381,2]
[359493363,1746064241561,-500.0,0.00021394,2]